bitfinex-derivatives/quotes_SOLF0:USTF0_20260105
["timestamp","ask_amount","ask_price","bid_price","bid_amount"]
[1767620616061,7.14014667,133.77,133.69,6.7356]
[1767620616256,7.14014667,133.77,133.67,0.4082906]
[1767620616454,7.14014667,133.77,133.68,0.4082906]
[1767620616960,0.40844667,133.77,133.7,6.7349]
[1767620617164,0.40844667,133.8,133.69,0.4082906]
[1767620617362,6.16238284,133.79,133.69,0.4082906]
[1767620617668,0.40844667,133.79,133.71,0.4082906]
[1767620618653,0.40844667,133.82,133.74,6.7329]
[1767620618853,7.13804667,133.82,133.73,0.4082906]
[1767620619562,7.13804667,133.82,133.75,6.7325]
[1767620620370,0.40844667,133.82,133.75,6.7325]
[1767620621459,0.40844667,133.82,133.73,7.1414906]
[1767620622063,0.40844667,133.8,133.73,0.4082906]
[1767620624371,6.7298,133.81,133.73,7.1417906]
[1767620624568,6.7298,133.81,133.7,104.7654]
[1767620624569,0.40844667,133.83,133.75,0.4082906]
[1767620624760,36.03097168,133.84,133.72,104.7531]
[1767620624761,0.40844667,133.81,133.72,88.7482906]
[1767620624960,0.40844667,133.81,133.72,0.4082906]
[1767620625372,0.40844667,133.8,133.72,0.4082906]
[1767620626569,6.7307,133.79,133.72,0.4082906]
[1767620626965,0.40844667,133.8,133.72,0.4082906]
[1767620626966,0.40844667,133.8,133.72,7.1423906]
[1767620628171,0.40844667,133.8,133.72,0.4082906]
[1767620628472,2.12672629,133.8,133.72,0.4082906]
[1767620629363,0.40844667,133.83,133.74,0.4082906]
[1767620629673,2.12672629,133.83,133.74,0.4082906]
[1767620630672,8.85532629,133.83,133.75,6.7325]
[1767620630856,7.13704667,133.83,133.75,6.7325]
[1767620631061,7.13714667,133.83,133.75,0.4082906]
[1767620631866,1.71827962,133.82,133.75,0.4082906]
[1767620632067,8.85582629,133.82,133.75,0.4082906]
[1767620632875,8.85582629,133.82,133.75,7.1408906]
[1767620633173,2.12672629,133.82,133.75,0.4082906]
[1767620633571,0.39465386,133.81,133.73,6.7332]
[1767620635677,7.12435386,133.81,133.73,6.7332]
[1767620637976,7.12435386,133.81,133.74,6.7331]
[1767620639079,0.39465386,133.79,133.71,88.34]
[1767620639372,7.12535386,133.79,133.71,0.41937261]
[1767620640368,6.7313,133.78,133.71,7.15397261]
[1767620640571,0.39465386,133.77,133.68,0.39617234]
[1767620641172,7.12645386,133.77,133.69,6.7356]
[1767620641579,7.12645386,133.77,133.69,7.13177234]
[1767620641778,7.12645386,133.77,133.7,6.7351]
[1767620642381,0.38719257,133.74,133.66,0.39617234]
[1767620643677,7.12039257,133.74,133.66,7.13327234]
[1767620643981,0.38719257,133.73,133.66,0.39617234]
[1767620644177,3.07184624,133.73,133.66,0.39617234]
[1767620644572,0.38719257,133.73,133.66,0.39617234]
[1767620645570,0.38719257,133.73,133.67,6.7366]
[1767620651087,0.38719257,133.75,133.67,7.13277234]
[1767620652392,7.11989257,133.75,133.68,6.7361]
[1767620653091,7.11989257,133.75,133.67,0.39617234]
[1767620654594,7.11989257,133.75,133.67,7.13277234]
[1767620655492,7.12049257,133.74,133.67,0.39617234]
[1767620655697,0.38719257,133.74,133.67,0.39617234]
[1767620657408,7.12039257,133.74,133.67,0.39617234]
[1767620657702,0.38719257,133.74,133.67,0.39617234]
[1767620657909,7.12099257,133.73,133.65,7.13377234]
[1767620658606,7.12099257,133.73,133.66,0.39617234]
[1767620658808,7.12129257,133.72,133.66,0.39617234]
[1767620659402,7.12129257,133.72,133.64,0.39617234]
[1767620660406,0.38719257,133.72,133.66,0.39617234]
[1767620660607,0.38719257,133.74,133.66,0.39617234]
[1767620660908,0.38719257,133.74,133.67,0.04843954]
[1767620661407,7.12039257,133.74,133.67,0.04843954]
[1767620662608,7.12089257,133.73,133.67,0.04843954]
[1767620662809,0.38719257,133.72,133.67,0.04843954]
[1767620663008,0.38719257,133.72,133.64,6.7377]
[1767620663306,0.38719257,133.7,133.63,88.73617234]
[1767620663513,0.05193317,133.69,133.63,88.73617234]
[1767620664211,0.05193317,133.69,133.63,95.47467234]
[1767620666813,0.05193317,133.69,133.65,0.39617234]
[1767620667113,0.05193317,133.69,133.63,88.73617234]
[1767620667811,0.05193317,133.69,133.63,0.39617234]
[1767620668408,0.43912574,133.69,133.63,0.39617234]
[1767620669018,0.43912574,133.69,133.6,88.38]
[1767620669320,0.43912574,133.69,133.61,0.39617234]
[1767620669511,0.38719257,133.68,133.61,0.39617234]
[1767620670324,0.05519731,133.66,133.61,0.39617234]
[1767620670920,0.42114448,133.71,133.63,0.40291863]
[1767620672320,0.42114448,133.71,133.66,0.05033666]
[1767620673016,0.42114448,133.7,133.66,0.05033666]
[1767620676721,0.42114448,133.69,133.66,0.05033666]
[1767620678119,0.42114448,133.69,133.63,0.40291863]
[1767620680126,7.15694448,133.69,133.63,0.40291863]
[1767620680824,0.42114448,133.69,133.63,0.40291863]
[1767620682019,0.42114448,133.69,133.63,7.14151863]
[1767620682227,0.42114448,133.71,133.64,0.40291863]
[1767620682719,0.42114448,133.71,133.65,7.14061863]
[1767620682919,0.42114448,133.73,133.66,0.40291863]
[1767620683926,0.05093556,133.71,133.66,0.40291863]
[1767620685927,0.05093556,133.71,133.67,0.40291863]
[1767620687730,0.05093556,133.71,133.67,7.13951863]
[1767620693020,0.42114448,133.75,133.68,7.14971087]
[1767620693225,0.42114448,133.75,133.69,0.41391087]
[1767620694430,0.42114448,133.75,133.71,0.0523016]
[1767620694734,7.15374448,133.75,133.71,0.0523016]
[1767620696530,0.42114448,133.75,133.71,0.0523016]
[1767620697126,7.12911794,133.74,133.67,0.41391087]
[1767620697430,0.39601794,133.74,133.67,7.15051087]
[1767620699629,0.39601794,133.73,133.67,0.41391087]
[1767620700334,7.12971794,133.73,133.67,0.41391087]
[1767620701027,7.15020379,133.72,133.65,7.14785012]
[1767620701231,7.15020379,133.72,133.65,0.41065012]
[1767620701734,2.13505007,133.71,133.65,0.41065012]
[1767620701934,2.13505007,133.7,133.63,0.41065012]
[1767620702734,2.13505007,133.7,133.63,7.14925012]
[1767620704435,8.87035007,133.7,133.63,7.14925012]
[1767620704733,2.13505007,133.7,133.63,7.14925012]
[1767620704934,0.41590379,133.69,133.63,0.41065012]
[1767620705134,7.15160379,133.69,133.63,0.41065012]
[1767620706928,0.05032586,133.67,133.63,0.41065012]
[1767620707636,0.05032586,133.67,133.63,7.14925012]
[1767620707838,0.41590379,133.69,133.64,0.05513062]
[1767620708836,6.7352,133.7,133.64,0.05513062]
[1767620711141,0.41590379,133.71,133.65,0.41065012]
[1767620711839,12.0,133.72,133.65,0.41065012]
[1767620712038,2.13505007,133.73,133.66,0.41065012]
[1767620712437,2.13505007,133.73,133.66,7.14765012]
[1767620712743,0.41590379,133.72,133.68,0.05056015]
[1767620713547,7.15020379,133.72,133.68,0.05056015]
[1767620714451,0.41590379,133.72,133.68,0.05056015]
[1767620715936,0.41590379,133.74,133.68,0.05056015]
[1767620716132,0.41590379,133.76,133.68,2.18035655]
[1767620716336,0.41590379,133.76,133.69,0.41065012]
[1767620716641,0.41590379,133.76,133.69,7.14625012]
[1767620716845,0.41590379,133.76,133.69,0.41065012]
[1767620717047,7.14820379,133.76,133.71,0.05208423]
[1767620717642,0.41590379,133.76,133.71,0.05208423]
[1767620718447,12.41590379,133.78,133.71,2.18188063]
[1767620718834,12.41590379,133.78,133.71,8.91648063]
[1767620719038,12.41590379,133.78,133.71,0.46273435]
[1767620720344,12.41590379,133.78,133.71,7.19733435]
[1767620720549,0.41590379,133.76,133.71,0.05208423]
[1767620720751,0.41590379,133.74,133.67,1.71914628]
[1767620721348,0.41590379,133.74,133.67,2.1297964]
[1767620721551,0.41590379,133.74,133.67,8.8659964]
[1767620723544,0.41590379,133.74,133.67,0.41065012]
[1767620725150,0.41590379,133.74,133.67,7.14725012]
[1767620726549,7.14910379,133.74,133.67,0.41065012]
[1767620727443,0.41590379,133.74,133.67,0.41065012]
[1767620728147,0.41590379,133.74,133.65,0.41065012]
[1767620728354,0.41590379,133.74,133.66,0.41065012]
[1767620728852,0.41590379,133.72,133.66,0.41065012]
[1767620729444,0.41590379,133.74,133.68,0.41065012]
[1767620729644,0.41590379,133.74,133.64,0.41065012]
[1767620729849,0.41590379,133.74,133.62,104.8296]
[1767620729850,0.41590379,133.74,133.67,0.41065012]
[1767620730258,2.13505007,133.74,133.67,0.41065012]
[1767620731652,0.41590379,133.74,133.67,0.41065012]
[1767620731857,2.13505007,133.74,133.67,0.41065012]
[1767620732157,2.13505007,133.74,133.67,7.14725012]
[1767620733659,2.13505007,133.74,133.67,0.41065012]
[1767620733860,0.41590379,133.74,133.67,0.41065012]
[1767620734063,2.13505007,133.74,133.67,0.41065012]
[1767620735754,0.41590379,133.74,133.67,0.41065012]
[1767620736562,0.41590379,133.74,133.67,7.14705012]
[1767620737552,7.12792455,133.73,133.67,0.41065012]
[1767620737753,0.39412455,133.72,133.65,7.14359046]
[1767620737959,0.39412455,133.72,133.66,0.40629046]
[1767620738560,0.39412455,133.72,133.66,7.14339046]
[1767620739066,0.39412455,133.72,133.66,0.40629046]
[1767620739254,0.39412455,133.71,133.64,7.14419046]
[1767620739459,0.39412455,133.71,133.64,0.40629046]
[1767620739661,2.11327083,133.68,133.62,6.7391]
[1767620739860,0.04716847,133.69,133.62,0.40629046]
[1767620740061,0.04716847,133.69,133.62,2.12543674]
[1767620740257,0.04716847,133.69,133.63,0.40629046]
[1767620740467,0.04716847,133.69,133.63,7.14469046]
[1767620740762,0.04716847,133.69,133.63,0.40629046]
[1767620740967,0.04716847,133.69,133.64,0.40629046]
[1767620741665,0.44129302,133.69,133.61,2.12543674]
[1767620741860,0.44129302,133.69,133.62,0.40629046]
[1767620742260,7.17699302,133.69,133.62,0.40629046]
[1767620742655,0.44129302,133.69,133.62,0.40629046]
[1767620743068,0.04716847,133.69,133.64,7.14429046]
[1767620743459,0.04716847,133.69,133.62,0.40629046]
[1767620743663,0.44129302,133.69,133.62,0.40629046]
[1767620743960,2.1604393,133.69,133.61,1.71914628]
[1767620744165,0.39412455,133.68,133.61,1.71914628]
[1767620744369,0.39412455,133.68,133.6,0.40629046]
[1767620744669,0.39412455,133.68,133.61,6.7396]
[1767620745063,1.71914628,133.69,133.58,7.14709046]
[1767620745064,0.39412455,133.65,133.58,7.14709046]
[1767620745362,0.39412455,133.64,133.58,0.40629046]
[1767620745763,2.11327083,133.63,133.56,6.7419]
[1767620746160,0.39412455,133.66,133.56,0.40629046]
[1767620746360,2.11327083,133.65,133.58,6.7411]
[1767620747571,0.39412455,133.64,133.56,7.14819046]
[1767620749475,88.28,133.67,133.58,0.40629046]
[1767620749476,1.71914628,133.66,133.58,0.40629046]
[1767620750668,1.71914628,133.66,133.59,7.14679046]
[1767620750868,0.39412455,133.67,133.59,0.40629046]
[1767620751074,0.39412455,133.67,133.6,6.74]
[1767620756478,0.41466591,133.66,133.59,0.40629046]
[1767620757185,12.41466591,133.68,133.6,0.44118098]
[1767620757777,12.41466591,133.68,133.62,0.44118098]
[1767620759786,0.05104462,133.66,133.62,7.18028098]
[1767620760984,0.41466591,133.68,133.62,7.18028098]
[1767620760985,12.0,133.7,133.63,0.42098779]
[1767620761191,12.40118326,133.7,133.63,0.47075327]
[1767620761682,0.40118326,133.69,133.63,0.47075327]
[1767620762188,0.40118326,133.69,133.63,0.04976548]
[1767620763791,0.40118326,133.68,133.63,0.04976548]
[1767620768392,0.40118326,133.67,133.63,0.04976548]
[1767620771195,0.40118326,133.69,133.63,0.47075327]
[1767620771597,0.40118326,133.69,133.63,7.20935327]
[1767620771790,0.40118326,133.69,133.63,0.47075327]
[1767620772598,0.40118326,133.69,133.64,6.7382]
[1767620773701,12.0,133.7,133.64,7.15918779]
[1767620774511,12.0,133.7,133.66,7.15818779]
[1767620774704,12.0,133.7,133.66,0.42098779]
[1767620775408,0.40118326,133.72,133.67,0.04838181]
[1767620777403,12.40118326,133.74,133.67,7.2056696]
[1767620777603,0.40118326,133.74,133.67,7.2056696]
[1767620779513,0.40118326,133.74,133.68,6.7361]
[1767620780204,0.40118326,133.74,133.67,0.04838181]
[1767620780415,0.40118326,133.71,133.63,0.42098779]
[1767620780808,2.69033956,133.72,133.63,0.42098779]
[1767620780809,0.40118326,133.69,133.63,0.42098779]
[1767620783617,0.40118326,133.71,133.64,0.42098779]
[1767620783826,0.40118326,133.71,133.6,0.42098779]
[1767620784118,0.40118326,133.69,133.6,0.42098779]
[1767620784300,7.13688326,133.69,133.6,7.16078779]
[1767620784504,2.69033956,133.7,133.6,7.16078779]
[1767620784505,0.40118326,133.68,133.6,0.42098779]
[1767620786211,0.40118326,133.68,133.61,7.16058779]
[1767620787114,0.40118326,133.68,133.62,7.16008779]
[1767620787419,12.0,133.69,133.62,7.16008779]
[1767620788520,12.0,133.69,133.63,0.42098779]
[1767620789018,12.0,133.69,133.63,7.15948779]
[1767620789717,0.40118326,133.7,133.64,0.42098779]
[1767620790110,12.0,133.71,133.64,7.15908779]
[1767620790818,12.0,133.71,133.64,0.42098779]
[1767620791612,12.0,133.71,133.65,7.16506436]
[1767620792918,18.7347,133.71,133.65,0.42746436]
[1767620794717,12.43709398,133.71,133.64,0.42746436]
[1767620794924,0.43709398,133.7,133.64,0.42746436]
[1767620795121,0.43709398,133.7,133.64,7.16526436]
[1767620796314,7.17229398,133.7,133.64,0.42746436]
[1767620796819,0.43709398,133.69,133.61,0.42746436]
[1767620797724,7.17299398,133.69,133.61,7.16716436]
[1767620798018,0.43709398,133.68,133.61,0.42746436]
[1767620799322,7.17329398,133.68,133.61,7.16706436]
[1767620801225,0.43709398,133.68,133.61,7.16706436]
[1767620802516,7.17339398,133.68,133.61,7.16706436]
[1767620803325,0.43709398,133.68,133.61,7.16706436]
[1767620806824,0.43709398,133.68,133.62,0.42746436]
[1767620807424,0.43709398,133.68,133.62,7.16646436]
[1767620807625,0.43709398,133.68,133.58,104.8607]
[1767620807626,0.43709398,133.7,133.63,0.42746436]
[1767620807924,12.0,133.71,133.63,0.42746436]
[1767620808124,5.72014011,133.7,133.63,0.42746436]
[1767620808426,12.0,133.71,133.63,0.42746436]
[1767620808922,0.43709398,133.72,133.65,0.42746436]
[1767620810326,0.43709398,133.72,133.66,7.16456436]
[1767620810527,0.43709398,133.74,133.67,0.42746436]
[1767620810721,5.72176107,133.73,133.67,0.42746436]
[1767620810920,0.43709398,133.74,133.67,0.42746436]
[1767620811120,5.72176972,133.73,133.67,0.42746436]
[1767620811331,0.43709398,133.74,133.67,0.42746436]
[1767620811627,5.72162026,133.73,133.67,0.42746436]
[1767620811830,7.17039398,133.74,133.67,0.42746436]
[1767620812015,5.71501418,133.73,133.67,7.16386436]
[1767620812222,0.43709398,133.74,133.67,7.16386436]
[1767620818431,0.43709398,133.74,133.68,0.42017747]
[1767620819925,0.43709398,133.74,133.69,0.42017747]
[1767620820130,88.74135122,133.76,133.69,2.13955134]
[1767620821135,2.16072509,133.76,133.69,0.42017747]
[1767620821329,0.44135122,133.76,133.7,0.44233657]
[1767620821834,0.42511603,133.75,133.68,0.44233657]
[1767620822029,0.42511603,133.73,133.66,0.44233657]
[1767620822427,7.15881603,133.73,133.66,0.44233657]
[1767620822632,2.1444899,133.72,133.64,0.44233657]
[1767620823130,0.42511603,133.72,133.65,7.17983657]
[1767620823738,0.42511603,133.72,133.66,0.44233657]
[1767620824026,1.71937387,133.73,133.66,0.44233657]
[1767620824334,14.1444899,133.74,133.67,0.44233657]
[1767620824837,7.15881603,133.73,133.67,0.44233657]
[1767620826338,0.42511603,133.73,133.67,0.44233657]
[1767620829340,7.15881603,133.73,133.67,0.44233657]
[1767620829545,8.8781899,133.73,133.67,0.44233657]
[1767620829841,0.42511603,133.72,133.65,7.17993657]
[1767620830540,7.15921603,133.72,133.65,7.17993657]
[1767620830942,8.8792899,133.71,133.65,0.44233657]
[1767620831140,8.8792899,133.71,133.63,2.16171044]
[1767620831643,8.8792899,133.71,133.64,0.44233657]
[1767620835247,0.42511603,133.7,133.64,0.44233657]
[1767620837349,0.42511603,133.7,133.64,7.18043657]
[1767620838649,12.0,133.73,133.67,0.44233657]
[1767620839641,12.0,133.73,133.67,7.17893657]
[1767620839945,12.0,133.73,133.68,0.44233657]
[1767620840144,0.42511603,133.74,133.68,0.44233657]
[1767620840849,13.71937387,133.75,133.69,0.44233657]
[1767620841053,12.0,133.75,133.69,0.44233657]
[1767620841848,88.70511603,133.76,133.69,7.17793657]
[1767620842147,88.70511603,133.76,133.7,0.44233657]
[1767620842544,88.28,133.76,133.7,0.44233657]
[1767620842745,1.71937387,133.77,133.7,7.17733657]
[1767620843052,0.42511603,133.78,133.71,0.44233657]
[1767620843244,5.70993535,133.77,133.71,0.44233657]
[1767620843443,0.42511603,133.78,133.71,0.44233657]
[1767620843644,0.42511603,133.75,133.68,0.44233657]
[1767620843852,0.42511603,133.74,133.68,0.44233657]
[1767620844156,8.8777899,133.74,133.68,0.44233657]
[1767620844353,8.8777899,133.74,133.65,0.44233657]
[1767620845251,8.8777899,133.74,133.66,7.17933657]
[1767620845654,8.8777899,133.74,133.67,0.44233657]
[1767620846660,8.8777899,133.74,133.67,7.17893657]
[1767620847959,0.42511603,133.73,133.67,0.44233657]
[1767620848862,0.42511603,133.73,133.67,7.17893657]
[1767620850060,0.42511603,133.73,133.68,7.17843657]
[1767620850260,8.45197387,133.75,133.68,7.17843657]
[1767620850261,2.1444899,133.75,133.68,7.17843657]
[1767620850464,5.71563786,133.74,133.68,7.17843657]
[1767620850760,2.1444899,133.75,133.68,7.17843657]
[1767620850961,5.71562923,133.74,133.68,7.17843657]
[1767620851161,2.1444899,133.75,133.68,7.17843657]
[1767620851370,5.71580712,133.74,133.68,7.17843657]
[1767620851570,0.42511603,133.75,133.68,7.17843657]
[1767620851771,5.71777389,133.74,133.68,7.17843657]
[1767620851973,0.42511603,133.75,133.68,7.17843657]
[1767620852173,5.71789731,133.74,133.68,7.17843657]
[1767620852367,0.42511603,133.75,133.68,7.17843657]
[1767620852771,0.42511603,133.75,133.69,0.41504814]
[1767620855077,0.4307762,133.74,133.67,0.41504814]
[1767620855470,0.4307762,133.74,133.66,1.71937387]
[1767620855674,12.0,133.76,133.64,88.38]
[1767620855675,2.15015007,133.73,133.65,0.41504814]
[1767620855874,0.4307762,133.73,133.65,0.41504814]
[1767620856178,2.15015007,133.73,133.65,0.41504814]
[1767620856581,8.88385007,133.73,133.65,7.15254814]
[1767620856978,8.88385007,133.73,133.66,0.41504814]
[1767620857278,2.15015007,133.73,133.66,0.41504814]
[1767620857979,8.88375007,133.73,133.66,0.41504814]
[1767620858286,7.1643762,133.73,133.66,0.41504814]
[1767620858481,0.4307762,133.71,133.63,0.41504814]
[1767620858783,12.0,133.73,133.63,0.41504814]
[1767620858784,0.4307762,133.69,133.63,0.41504814]
[1767620859185,0.4307762,133.68,133.61,0.41504814]
[1767620859389,0.4307762,133.67,133.61,0.41504814]
[1767620860075,0.4307762,133.67,133.61,7.15474814]
[1767620860270,2.15015007,133.67,133.61,7.15474814]
[1767620861772,2.15015007,133.67,133.61,0.41504814]
[1767620861979,2.15015007,133.67,133.59,6.7402]
[1767620861980,0.4307762,133.66,133.59,7.15524814]
[1767620865782,0.4307762,133.66,133.6,7.15504814]
[1767620867577,0.4307762,133.65,133.58,7.15584814]
[1767620867885,2.15015007,133.65,133.58,0.41504814]
[1767620868687,2.15015007,133.65,133.59,6.7406]
[1767620870682,2.15015007,133.65,133.6,6.7402]
[1767620871386,12.0,133.66,133.6,7.15524814]
[1767620871587,12.0,133.66,133.61,7.15454814]
[1767620871883,2.15015007,133.67,133.61,7.15454814]
[1767620873691,0.4307762,133.67,133.61,7.15454814]
[1767620874386,13.71937387,133.68,133.62,0.43604836]
[1767620874887,13.71937387,133.68,133.62,7.17504836]
[1767620875085,0.44839262,133.69,133.62,0.43604836]
[1767620875277,2.16776649,133.69,133.62,0.43604836]
[1767620875681,0.44839262,133.68,133.62,0.43604836]
[1767620876584,0.44839262,133.68,133.62,7.17514836]
[1767620876991,1.71937387,133.69,133.63,0.43604836]
[1767620877792,12.44839262,133.7,133.63,0.43604836]
[1767620878695,12.44839262,133.7,133.64,6.7381]
[1767620881293,0.44839262,133.7,133.65,6.7375]
[1767620882188,0.44839262,133.7,133.64,0.44417952]
[1767620882397,0.43078565,133.69,133.61,0.44417952]
[1767620883595,0.43078565,133.69,133.57,88.4]
[1767620883596,0.43078565,133.67,133.57,0.44417952]
[1767620883991,6.7372,133.66,133.58,6.7412]
[1767620884191,0.43078565,133.65,133.58,6.7412]
[1767620884496,0.43078565,133.65,133.57,0.44417952]
[1767620886496,0.43078565,133.65,133.59,0.44417952]
[1767620887601,0.43078565,133.65,133.59,7.18447952]
[1767620888688,0.43078565,133.65,133.6,6.7401]
[1767620889000,0.43078565,133.67,133.6,0.44417952]
[1767620889704,0.43078565,133.67,133.61,6.7397]
[1767620890200,0.43078565,133.67,133.57,193.2889]
[1767620890201,0.43078565,133.67,133.57,0.44417952]
[1767620891703,0.43078565,133.65,133.58,7.18517952]
[1767620892201,0.43078565,133.65,133.58,0.44417952]
[1767620892799,6.7367,133.67,133.6,0.44417952]
[1767620893496,7.16748565,133.67,133.6,0.44417952]
[1767620895206,0.43078565,133.66,133.6,0.44417952]
[1767620895504,0.43078565,133.66,133.6,7.18427952]
[1767620897706,0.43078565,133.66,133.59,6.7407]
[1767620898298,3.11924871,133.65,133.55,0.44417952]
[1767620898597,0.43078565,133.63,133.55,0.44417952]
[1767620898793,7.16858565,133.65,133.57,7.18577952]
[1767620900005,0.43078565,133.64,133.57,7.18577952]
[1767620904104,0.43078565,133.64,133.58,0.44417952]
[1767620905700,18.7378,133.65,133.59,0.44417952]
[1767620905903,5.71845266,133.64,133.59,0.44417952]
[1767620906098,12.0,133.65,133.59,0.44417952]
[1767620906299,5.71875112,133.64,133.59,0.44417952]
[1767620906607,12.0,133.65,133.59,7.18487952]
[1767620906906,5.71854014,133.64,133.59,7.18487952]
[1767620907103,12.0,133.65,133.59,7.18487952]
[1767620907303,5.7179699,133.64,133.59,7.18487952]
[1767620907505,12.0,133.65,133.59,7.18487952]
[1767620907701,5.71722594,133.64,133.59,7.18487952]
[1767620907903,12.0,133.65,133.59,7.18487952]
[1767620908706,12.43078565,133.65,133.59,7.18487952]
[1767620910108,12.0,133.65,133.6,0.44417952]
[1767620913112,12.43250906,133.65,133.59,6.7407]
[1767620913306,12.43250906,133.65,133.59,7.190222]
[1767620913707,0.43250906,133.64,133.57,7.190722]
[1767620913911,0.43250906,133.64,133.58,0.449522]
[1767620914907,0.43250906,133.64,133.59,6.7407]
[1767620915115,12.0,133.65,133.59,7.190222]
[1767620915309,12.0,133.65,133.59,0.449522]
[1767620915514,0.43250906,133.66,133.59,0.449522]
[1767620916209,0.43250906,133.68,133.59,0.449522]
[1767620916405,5.71712466,133.67,133.59,0.449522]
[1767620916608,0.43250906,133.67,133.61,6.7395]
[1767620919418,0.43250906,133.67,133.61,7.189022]
[1767620920017,0.43250906,133.67,133.62,6.7392]
[1767620921313,88.3,133.7,133.58,107.54806306]
[1767620921314,0.43250906,133.7,133.63,0.449522]
[1767620921508,0.43250906,133.7,133.61,0.449522]
[1767620921716,0.43250906,133.68,133.61,0.449522]
[1767620922318,0.43250906,133.68,133.62,6.7392]
[1767620926924,0.43250906,133.68,133.59,0.449522]
[1767620928530,0.43250906,133.67,133.6,7.189222]
[1767620929125,5.69091802,133.66,133.6,7.189222]
[1767620929327,0.43250906,133.67,133.6,7.189222]
[1767620929523,5.6909058,133.66,133.61,0.449522]
[1767620929831,0.43250906,133.69,133.62,0.449522]
[1767620930236,0.43250906,133.69,133.63,6.7386]
[1767620932934,0.43250906,133.69,133.62,7.188722]
[1767620935640,5.68423844,133.68,133.62,0.449522]
[1767620935841,7.16820906,133.69,133.62,0.449522]
[1767620936042,0.41856354,133.67,133.6,0.4234264]
[1767620937542,0.41856354,133.67,133.6,7.1636264]
[1767620937743,0.41856354,133.67,133.61,0.4234264]
[1767620939445,6.7362,133.68,133.61,0.4234264]
[1767620939744,5.68231042,133.67,133.61,0.4234264]
[1767620939942,6.7362,133.68,133.61,0.4234264]
[1767620940145,5.68096328,133.67,133.61,0.4234264]
[1767620940441,0.41856354,133.69,133.62,0.4234264]
[1767620940634,5.68062522,133.68,133.62,0.4234264]
[1767620940835,0.41856354,133.69,133.62,0.4234264]
[1767620941544,1.72099177,133.71,133.64,0.42256144]
[1767620941734,5.68039104,133.7,133.64,0.42256144]
[1767620941941,88.76514638,133.72,133.64,2.14355321]
[1767620942141,5.68070686,133.71,133.64,2.14355321]
[1767620942443,88.76514638,133.72,133.64,2.14355321]
[1767620942643,6.12401231,133.71,133.64,8.88155321]
[1767620942946,2.16613815,133.71,133.64,7.16056144]
[1767620946047,2.16613815,133.71,133.65,0.42256144]
[1767620946354,0.44514638,133.71,133.65,0.42256144]
[1767620948147,0.44514638,133.71,133.65,7.15996144]
[1767620949547,0.44514638,133.71,133.65,0.42256144]
[1767620950459,0.44514638,133.71,133.63,0.42256144]
[1767620950646,2.16613815,133.69,133.61,0.42256144]
[1767620950845,0.44514638,133.68,133.61,0.42256144]
[1767620951059,0.44514638,133.68,133.61,7.16226144]
[1767620952157,0.44514638,133.68,133.62,0.42256144]
[1767620952760,8.45669177,133.69,133.62,0.42256144]
[1767620953056,8.90183815,133.69,133.62,0.42256144]
[1767620956255,2.16613815,133.69,133.62,7.16176144]
[1767620958460,0.44514638,133.69,133.62,8.88275321]
[1767620958660,0.44514638,133.69,133.63,0.42256144]
[1767620961466,0.04829931,133.67,133.65,0.05737007]
[1767620967769,0.04829931,133.67,133.61,8.88275321]
[1767620967969,0.04829931,133.67,133.62,0.42256144]
[1767620969073,0.04829931,133.67,133.55,140.8363]
[1767620969074,7.23014569,133.67,133.59,7.16276144]
[1767620969270,0.49344569,133.67,133.6,0.42256144]
[1767620969470,0.44514638,133.67,133.6,0.42256144]
[1767620969972,0.0498415,133.65,133.6,0.42256144]
[1767620971072,0.48216505,133.65,133.6,0.42256144]
[1767620974072,0.48216505,133.65,133.59,0.42344732]
[1767620976483,7.21986505,133.65,133.59,0.42344732]
[1767620978381,0.0498415,133.65,133.59,0.42344732]
[1767620978779,0.0498415,133.65,133.6,0.42344732]
[1767620979882,0.0498415,133.65,133.61,0.42344732]
[1767620982187,1.72099177,133.68,133.62,0.42344732]
[1767620983487,0.04912112,133.66,133.62,0.42344732]
[1767620986086,0.04912112,133.66,133.63,0.42344732]
[1767620986398,2.15331532,133.7,133.63,0.42344732]
[1767620986687,2.15331532,133.7,133.63,0.47800936]
[1767620987390,0.43232355,133.7,133.63,0.47800936]
[1767620987591,0.43232355,133.7,133.64,0.42344732]
[1767620988787,0.43232355,133.65,133.58,0.42344732]
[1767620989487,2.15331532,133.64,133.58,0.42344732]
[1767620990085,2.15331532,133.62,133.56,0.42344732]
[1767620990292,0.43232355,133.61,133.54,0.42344732]
[1767620990792,2.15331532,133.6,133.52,0.42344732]
[1767620991186,0.05342644,133.59,133.52,0.42344732]
[1767620992303,0.05342644,133.59,133.53,0.42344732]
[1767620995300,0.46640989,133.59,133.53,0.42344732]
[1767620996192,0.46640989,133.59,133.53,7.16704732]
[1767620996398,0.05342644,133.59,133.53,0.42344732]
[1767620996997,0.05342644,133.59,133.54,2.1508312]
[1767620997398,0.05342644,133.59,133.54,0.42983943]
[1767620997596,0.05342644,133.59,133.54,8.8938312]
[1767620997797,0.41298345,133.63,133.55,0.42983943]
[1767620997987,0.41298345,133.63,133.56,0.42983943]